fUST/lending_fUST_20260525
["ID","MTS","AMOUNT","RATE_DAILY","PERIOD"]
[422954637,1779671445000,-1045.155927,0.00013185,2]
[422954638,1779671445000,-1045.155927,0.00013185,2]
[422954629,1779671445000,-151.0,0.00013185,2]
[422954620,1779671445000,-639.21,0.00012876,2]
[422954645,1779671445000,-151.0,0.00013185,2]
[422954611,1779671445000,-1717.15,0.00012328,2]
[422954612,1779671445000,-500.0,0.00012328,2]
[422954614,1779671445000,-1717.15,0.00012602,2]
[422954615,1779671445000,-500.0,0.00012602,2]
[422954610,1779671445000,-500.0,0.00012328,2]
[422954613,1779671445000,-500.0,0.00012602,2]
[422954625,1779671445000,-1717.15,0.0001315,2]
[422954623,1779671445000,-1000.0,0.00013,2]
[422954624,1779671445000,-268.36095357,0.00013104,2]
[422954626,1779671445000,-167533.34145963,0.00013185,2]
[422954628,1779671445000,-295.073083,0.00013185,2]
[422954630,1779671445000,-151.0,0.00013185,2]
[422954627,1779671445000,-151.0,0.00013185,2]
[422954617,1779671445000,-1483.87283228,0.00012859,2]
[422954618,1779671445000,-347.78,0.00012876,2]
[422954619,1779671445000,-1717.15,0.00012876,2]
[422954622,1779671445000,-151.02,0.00013,2]
[422954621,1779671445000,-405.022364,0.00012986,2]
[422954632,1779671445000,-151.0,0.00013185,2]
[422954651,1779671445000,-326.0126879,0.00013376,2]
[422954616,1779671445000,-290.0,0.00012712,3]
[422954655,1779671445000,-1717.15,0.00013424,2]
[422954680,1779671445000,-151.0,0.00014144,2]
[422954681,1779671445000,-151.0,0.00014148,2]
[422954679,1779671445000,-151.0,0.00014144,2]
[422954687,1779671445000,-456.6813334,0.00014198,2]
[422954684,1779671445000,-269.8010833,0.00014148,2]
[422954683,1779671445000,-151.0,0.00014148,2]
[422954686,1779671445000,-270.1812533,0.00014198,2]
[422954688,1779671445000,-287.734,0.00014246,2]
[422954685,1779671445000,-289.2459599,0.00014148,2]
[422954682,1779671445000,-456.3497628,0.00014148,2]
[422954691,1779671445000,-545.99753733,0.00014246,2]
[422954690,1779671445000,-500.0,0.0001178,2]
[422954694,1779671445000,-1651.55074858,0.0001452,2]
[422954693,1779671445000,-579.49918859,0.00014423,2]
[422954692,1779671445000,-206.0,0.00014356,3]
[422954696,1779671445000,-579.49918859,0.00014532,2]
[422954697,1779671445000,-579.49918859,0.00014534,2]
[422954698,1779671445000,-657.6023714,0.00014574,2]
[422954695,1779671445000,-65.59925142,0.0001452,2]
[422954689,1779671445000,-1171.15246267,0.00014246,2]
[422954676,1779671445000,-151.0,0.00014144,2]
[422954652,1779671445000,-326.0270599,0.00013376,2]
[422954675,1779671445000,-292.45303344,0.0001408,2]
[422954672,1779671445000,-588.88852933,0.00014002,2]
[422954666,1779671445000,-528.20604311,0.00013972,2]
[422954663,1779671445000,-151.585,0.00013875,2]
[422954656,1779671445000,-1571.55594333,0.00013431,2]
[422954659,1779671445000,-162.008945,0.00013635,2]
[422954664,1779671445000,-443.0,0.00013875,2]
[422954665,1779671445000,-185.0,0.00013875,2]
[422954660,1779671445000,-1717.15,0.00013698,2]
[422954662,1779671445000,-166.213,0.00013875,2]
[422954657,1779671445000,-207.06303954,0.00013439,2]
[422954658,1779671445000,-864.0,0.00013523,2]
[422954667,1779671445000,-1188.94395689,0.00013972,2]
[422954678,1779671445000,-192.9599677,0.00014144,2]
[422954677,1779671445000,-151.0,0.00014144,2]
[422954673,1779671445000,-1070.35052504,0.00014002,2]
[422954674,1779671445000,-287.04615515,0.0001408,2]
[422954671,1779671445000,-1000.0,0.00014,2]
[422954669,1779671445000,-179.884235,0.00013983,2]
[422954670,1779671445000,-151.02,0.00014,2]
[422954668,1779671445000,-231.0,0.00013976,2]
[422954661,1779671445000,-1000.0,0.00013699,2]
[422954706,1779671447000,-500.0,0.00012054,2]
[422954707,1779671447000,-500.0,0.00012328,2]
[422954708,1779671447000,-500.0,0.00012602,2]
[422954710,1779671447000,-352.89995577,0.0001315,2]
[422954712,1779671447000,-122.65329526,0.00014678,2]
[422954709,1779671447000,-500.0,0.00012876,2]
[422954711,1779671447000,-1053.09674897,0.00014574,2]
[422954717,1779671593000,-17463.3886333,8.193e-05,2]
[422954716,1779671593000,-32236.6113667,8.193e-05,2]
[422954715,1779671593000,-300.0,8.192e-05,2]
[422954719,1779671612000,-153.34911636,8.193e-05,2]
[422954718,1779671612000,-174.77202844,8.193e-05,2]
[422954722,1779671612000,-500.0,8.84e-05,2]
[422954720,1779671612000,-500.0,8.292e-05,2]
[422954721,1779671612000,-500.0,8.566e-05,2]
[422954724,1779671750000,-150.0,8.632e-05,2]
[422954723,1779671750000,-10920.35026391,8.193e-05,2]
[422954728,1779671905000,-500.0,8.292e-05,2]
[422954729,1779671905000,-500.0,8.566e-05,2]
[422954731,1779671905000,-152.0,9.071e-05,2]
[422954730,1779671905000,-500.0,8.84e-05,2]
[422954732,1779671905000,-434.46370139,9.114e-05,2]
[422954733,1779671905000,-152.0,9.377e-05,7]
[422954734,1779671905000,-666.67738662,9.384e-05,2]
[422954736,1779671905000,-152.0,9.468e-05,7]
[422954737,1779671905000,-152.0,9.478e-05,7]
[422954738,1779671905000,-152.0,9.478e-05,7]
[422954739,1779671905000,-161.73758927,9.939e-05,2]
[422954740,1779671905000,-160.0,9.939e-05,2]
[422954741,1779671905000,-160.0,9.939e-05,2]
[422954742,1779671905000,-160.0,9.939e-05,2]
[422954735,1779671905000,-152.0,9.468e-05,7]
[422954745,1779671979000,-161.73758927,0.0001034,2]
[422954744,1779671979000,-2666.70954649,0.0001034,2]
[422954746,1779671979000,-177.0,0.00010632,2]
[422954749,1779671979000,-204.0,0.00012632,2]
[422954751,1779671979000,-185.0,0.00013372,2]
[422954748,1779671979000,-237.0,0.0001211,3]
[422954750,1779671979000,-443.0,0.00013372,2]
[422954753,1779671979000,-456.7008752,0.00014022,2]
[422954752,1779671979000,-221.0,0.00013753,3]
[422954754,1779671979000,-324.1183587,0.00014022,2]
[422954755,1779671979000,-274.4996921,0.00014022,2]
[422954747,1779671979000,-5994.09638312,0.00011297,2]
[422954757,1779672061000,-500.0,8.711e-05,2]
[422954758,1779672061000,-150.0,9.525e-05,2]
[422954761,1779672061000,-160.0,0.0001034,2]
[422954759,1779672061000,-160.0,0.0001034,2]
[422954760,1779672061000,-160.0,0.0001034,2]
[422954764,1779672061000,-204.0,0.00013525,2]
[422954765,1779672061000,-456.6813334,0.00014022,2]
[422954762,1779672061000,-177.0,0.00011525,2]
[422954763,1779672061000,-327.0,0.00013205,3]
[422954766,1779672349000,-938.14607409,8.5e-05,7]
[422954768,1779672425000,-475.37753297,8.5e-05,7]
[422954790,1779672632000,-576.63314209,0.00010197,2]
[422954792,1779672632000,-252.04369357,0.00010197,2]
[422954787,1779672632000,-32.80669207,0.00010197,2]
[422954785,1779672632000,-500.0,8.713e-05,2]
[422954783,1779672632000,-132.24330793,8.5e-05,7]
[422954843,1779672638000,-4138.51647227,0.00010197,2]
[422954847,1779672638000,-170.1765627,0.000105,2]
[422954848,1779672638000,-300.0,0.00012099,2]
[422954850,1779672638000,-300.0,0.00012099,2]
[422954854,1779672638000,-300.0,0.00012099,2]
[422954845,1779672638000,-150.0,0.000103,2]
[422954856,1779672638000,-6897.86815778,0.000121,5]
[422954858,1779672638000,-177.0,0.000123,2]
[422954860,1779672638000,-232.0,0.00012658,3]
[422954862,1779672638000,-155.0,0.00013281,2]
[422954864,1779672638000,-185.0,0.00013372,2]
[422954852,1779672638000,-300.0,0.00012099,2]
[422954866,1779672639000,-443.0,0.00013372,2]
[422954869,1779672639000,-1000.0,0.00013699,2]
[422954873,1779672639000,-153.34911632,0.000138,2]
[422954875,1779672639000,-500.0,0.00013897,2]
[422954871,1779672639000,-230.187,0.00013699,2]
[422954878,1779672639000,-445.92954478,0.00013897,2]
[422954881,1779672639000,-18000.0,0.00013898,2]
[422954882,1779672639000,-6586.45373631,0.000139,5]
[422954887,1779672639000,-756.81431939,0.00013992,2]
[422954877,1779672639000,-623.79910428,0.00013897,2]
[422954884,1779672639000,-75805.42555219,0.00013992,2]
[422955212,1779672641000,-251.71235342,0.00013992,2]
[422955162,1779672641000,-295.73937491,0.00013992,2]
[422955160,1779672641000,-1059.91665635,0.00013992,2]
[422955158,1779672641000,-160.0,0.00013687,2]
[422955559,1779672644000,-304.0,0.00013992,2]
[422955553,1779672644000,-628.80249678,0.00013896,2]
[422955557,1779672644000,-7729.2050076,0.00013992,2]
[422955555,1779672644000,-1491.78073403,0.00013992,2]
[422955541,1779672644000,-351.41676919,0.00013896,2]
[422955748,1779672647000,-12305.40600211,0.00013992,2]
[422955750,1779672647000,-2796.7511393,0.00014,2]
[422955751,1779672647000,-5824.62473304,0.00014,2]
[422955749,1779672647000,-5441.11725133,0.00014,2]
[422955752,1779672647000,-842.0,0.00014,2]
[422955753,1779672710000,-334.08744188,9.192e-05,3]
[422955754,1779672727000,-445.477,0.00012793,2]
[422955760,1779673281000,-500.0,8.738e-05,2]
[422955761,1779673300000,-623.79910428,8.738e-05,2]
[422955762,1779673319000,-445.92954478,8.738e-05,2]
[422955763,1779673549000,-963.57817001,8.738e-05,2]
[422955764,1779673647000,-403.08262681,8.738e-05,2]
[422955813,1779673832000,-411.94375545,8.651e-05,2]
[422955939,1779673838000,-204.0,0.0001276,2]
[422955941,1779673838000,-445.477,0.00012793,2]
[422955928,1779673838000,-177.0,0.0001076,2]
[422955932,1779673838000,-1200.0,0.00012641,2]
[422955930,1779673838000,-208.06873358,0.0001211,3]
[422955921,1779673838000,-500.0,8.828e-05,2]
[422955923,1779673838000,-160.0,9.947e-05,2]
[422955925,1779673838000,-160.0,9.947e-05,2]
[422955945,1779673838000,-150.062,0.00012793,2]
[422955917,1779673838000,-4588.05624455,8.651e-05,2]
[422955934,1779673838000,-300.0,0.00012642,2]
[422955919,1779673838000,-150.0,8.76e-05,2]
[422955943,1779673838000,-185.0,0.00012793,2]
[422955949,1779673838000,-500.0,0.00012999,2]
[422955969,1779673838000,-97138.0,0.00013982,2]
[422955947,1779673838000,-446.55598874,0.00012999,2]
[422955963,1779673838000,-253.0,0.00013905,2]
[422955961,1779673838000,-160.0,0.000139,5]
[422955965,1779673838000,-202.8529629,0.00013951,2]
[422955967,1779673838000,-184.534,0.00013951,2]
[422955953,1779673838000,-32670.85752307,0.00013,2]
[422955957,1779673838000,-1000.0,0.00013699,2]
[422955955,1779673838000,-1204.5135409,0.00013639,2]
[422955951,1779673838000,-645.77269106,0.00012999,2]
[422955959,1779673838000,-1354.17585096,0.00013894,2]
[422955937,1779673838000,-7001.917311,0.00012643,2]
[422955983,1779673839000,-3495.8960503,0.00014,2]
[422955980,1779673839000,-1197.16094183,0.00014,2]
[422955977,1779673839000,-29879.65859663,0.00014,2]
[422955974,1779673839000,-500.0,0.00013991,2]
[422955971,1779673839000,-196.40306486,0.00013989,2]
[422956067,1779673841000,-1106.38514969,0.00014,2]
[422956101,1779673847000,-470.79350223,0.0001386,2]
[422956108,1779674145000,-167.60536603,0.00010959,7]
[422956109,1779674199000,-152.0,8.984e-05,7]
[422956110,1779674252000,-152.0,8.984e-05,7]
[422956111,1779674305000,-150.0,8.985e-05,2]
[422956112,1779674359000,-152.0,8.986e-05,7]
[422956114,1779674412000,-500.0,8.956e-05,2]
[422956115,1779674431000,-152.0,8.986e-05,7]
[422956116,1779674484000,-152.0,8.987e-05,7]
[422956117,1779674538000,-1197.16094183,9.923e-05,2]
[422956300,1779675038000,-1197.16094183,9.923e-05,2]
[422956675,1779675040000,-151.7043619,0.00012896,2]
[422956671,1779675040000,-501.35010796,0.00012896,2]
[422956661,1779675040000,-300.0,0.00012628,2]
[422956657,1779675040000,-177.0,0.00012441,2]
[422956655,1779675040000,-185.0,0.00011794,2]
[422956653,1779675040000,-443.0,0.00011794,2]
[422956651,1779675040000,-264.08241906,0.00011793,2]
[422956640,1779675040000,-150.0,0.00010441,2]
[422956641,1779675040000,-279.34227672,0.00010959,7]
[422956677,1779675040000,-312.58919212,0.00012897,2]
[422956649,1779675040000,-482.46348595,0.00011793,2]
[422956647,1779675040000,-500.0,0.0001174,2]
[422956646,1779675040000,-173.88721994,0.0001099,2]
[422956638,1779675040000,-3802.83905817,9.923e-05,2]
[422956644,1779675040000,-558.68455344,0.00010959,7]
[422956667,1779675040000,-2786.85,0.00012876,2]
[422956659,1779675040000,-300.0,0.00012628,2]
[422956663,1779675040000,-232.0,0.0001263,3]
[422956665,1779675040000,-2786.85,0.00012876,2]
[422956699,1779675040000,-500.5991379,0.00012897,2]
[422956703,1779675040000,-501.62889459,0.00012898,2]
[422956695,1779675040000,-500.0,0.00012897,2]
[422956693,1779675040000,-500.76592948,0.00012897,2]
[422956697,1779675040000,-500.0,0.00012897,2]
[422956687,1779675040000,-500.0,0.00012897,2]
[422956691,1779675040000,-500.0,0.00012897,2]
[422956701,1779675040000,-606.6040839,0.00012898,2]
[422956685,1779675040000,-500.0,0.00012897,2]
[422956679,1779675040000,-500.0,0.00012897,2]
[422956683,1779675040000,-500.0,0.00012897,2]
[422956681,1779675040000,-257.29060341,0.00012897,2]
[422956673,1779675040000,-500.87894011,0.00012896,2]
[422956669,1779675040000,-500.0,0.00012896,2]
[422956689,1779675040000,-500.0,0.00012897,2]
[422956733,1779675041000,-500.54618689,0.00012898,2]
[422956731,1779675041000,-503.31075086,0.00012898,2]
[422956721,1779675041000,-500.0,0.00012898,2]
[422956723,1779675041000,-500.0,0.00012898,2]
[422956719,1779675041000,-445.79456849,0.00012898,2]
[422956729,1779675041000,-500.65820819,0.00012898,2]
[422956715,1779675041000,-501.49397838,0.00012898,2]
[422956713,1779675041000,-501.22739341,0.00012898,2]
[422956717,1779675041000,-501.39926781,0.00012898,2]
[422956727,1779675041000,-557.13195255,0.00012898,2]
[422956709,1779675041000,-310.47020045,0.00012898,2]
[422956711,1779675041000,-501.57173165,0.00012898,2]
[422956707,1779675041000,-500.96419362,0.00012898,2]
[422956705,1779675041000,-501.01992873,0.00012898,2]
[422956737,1779675041000,-500.63954087,0.00012898,2]
[422956725,1779675041000,-500.79266691,0.00012898,2]
[422956739,1779675041000,-469.36678718,0.00012898,2]
[422956735,1779675041000,-500.0,0.00012898,2]
[422956751,1779675041000,-500.0,0.00012898,2]
[422956742,1779675041000,-500.0,0.00012898,2]
[422956769,1779675041000,-500.0,0.00012898,2]
[422956767,1779675041000,-501.58829518,0.00012898,2]
[422956771,1779675041000,-235.98888907,0.00012898,2]
[422956763,1779675041000,-500.56827821,0.00012898,2]
[422956765,1779675041000,-500.64766223,0.00012898,2]
[422956760,1779675041000,-502.26492184,0.00012898,2]
[422956758,1779675041000,-501.95657312,0.00012898,2]
[422956756,1779675041000,-501.17600211,0.00012898,2]
[422956762,1779675041000,-500.60073031,0.00012898,2]
[422956750,1779675041000,-500.0,0.00012898,2]
[422956746,1779675041000,-501.16836572,0.00012898,2]
[422956749,1779675041000,-500.0,0.00012898,2]
[422956744,1779675041000,-501.18544374,0.00012898,2]
[422956753,1779675041000,-500.0,0.00012898,2]
[422956748,1779675041000,-500.47068966,0.00012898,2]
[422956752,1779675041000,-500.83617863,0.00012898,2]
[422956754,1779675041000,-501.04113293,0.00012898,2]
[422957065,1779675043000,-500.79832216,0.00012898,2]
[422957066,1779675043000,-500.0,0.00012898,2]
[422957063,1779675043000,-500.0,0.00012898,2]
[422957061,1779675043000,-501.72385004,0.00012898,2]
[422957058,1779675043000,-500.0,0.00012898,2]
[422957062,1779675043000,-491.15486123,0.00012898,2]
[422957069,1779675043000,-500.47157726,0.00012898,2]
[422957064,1779675043000,-500.0,0.00012898,2]
[422957070,1779675043000,-501.7995951,0.00012898,2]
[422957077,1779675043000,-500.78197182,0.00012898,2]
[422957072,1779675043000,-500.5836262,0.00012898,2]
[422957067,1779675043000,-501.06368839,0.00012898,2]
[422957073,1779675043000,-501.06417249,0.00012898,2]
[422957076,1779675043000,-500.0,0.00012898,2]
[422957075,1779675043000,-501.36688464,0.00012898,2]
[422957074,1779675043000,-501.62043995,0.00012898,2]
[422957071,1779675043000,-500.0,0.00012898,2]
[422957057,1779675043000,-500.0,0.00012898,2]
[422957079,1779675043000,-501.64537782,0.00012898,2]
[422957068,1779675043000,-500.99920545,0.00012898,2]
[422957056,1779675043000,-500.6588611,0.00012898,2]
[422957047,1779675043000,-500.62228673,0.00012898,2]
[422957055,1779675043000,-500.58385692,0.00012898,2]
[422957078,1779675043000,-504.37890254,0.00012898,2]
[422957036,1779675043000,-264.74002245,0.00012898,2]
[422957037,1779675043000,-152.29703987,0.00012898,2]
[422957038,1779675043000,-348.45973778,0.00012898,2]
[422957041,1779675043000,-349.05212202,0.00012898,2]
[422957040,1779675043000,-500.67367569,0.00012898,2]
[422957039,1779675043000,-500.41084806,0.00012898,2]
[422957042,1779675043000,-500.0,0.00012898,2]
[422957045,1779675043000,-500.89698566,0.00012898,2]
[422957060,1779675043000,-219.78145972,0.00012898,2]
[422957048,1779675043000,-500.47261988,0.00012898,2]
[422957046,1779675043000,-501.41089933,0.00012898,2]
[422957043,1779675043000,-500.0,0.00012898,2]
[422957049,1779675043000,-501.37232404,0.00012898,2]
[422957051,1779675043000,-500.60085304,0.00012898,2]
[422957050,1779675043000,-500.84049812,0.00012898,2]
[422957052,1779675043000,-501.35649575,0.00012898,2]
[422957054,1779675043000,-500.0,0.00012898,2]
[422957053,1779675043000,-501.17223911,0.00012898,2]
[422957059,1779675043000,-648.80900808,0.00012898,2]
[422957044,1779675043000,-1001.22105317,0.00012898,2]
[422957080,1779675043000,-500.74862238,0.00012898,2]
[422957091,1779675043000,-479.87304557,0.00012998,2]
[422957085,1779675043000,-500.0,0.00012898,2]
[422957113,1779675043000,-501.40667142,0.00012998,2]
[422957111,1779675043000,-500.0,0.00012998,2]
[422957115,1779675043000,-501.53420917,0.00012998,2]
[422957116,1779675043000,-501.3293305,0.00012998,2]
[422957122,1779675043000,-500.90467977,0.00012998,2]
[422957120,1779675043000,-501.73410032,0.00012998,2]
[422957127,1779675043000,-495.98274632,0.00012998,2]
[422957123,1779675043000,-507.56756734,0.00012998,2]
[422957129,1779675043000,-500.39020883,0.00012998,2]
[422957110,1779675043000,-500.0,0.00012998,2]
[422957131,1779675043000,-500.76370794,0.00012998,2]
[422957133,1779675043000,-501.03122698,0.00012998,2]
[422957134,1779675043000,-500.0,0.00012998,2]
[422957132,1779675043000,-500.0,0.00012998,2]
[422957135,1779675043000,-500.0,0.00012998,2]
[422957137,1779675043000,-500.69043978,0.00012998,2]
[422957136,1779675043000,-555.98336841,0.00012998,2]
[422957138,1779675043000,-501.27264943,0.00012998,2]
[422957140,1779675043000,-500.7850168,0.00012998,2]
[422957081,1779675043000,-540.74425687,0.00012898,2]
[422957125,1779675043000,-5.40508376,0.00012998,2]
[422957108,1779675043000,-500.25700745,0.00012998,2]
[422957118,1779675043000,-500.0,0.00012998,2]
[422957106,1779675043000,-220.77863835,0.00012998,2]
[422957087,1779675043000,-17676.71372093,0.00012899,2]
[422957092,1779675043000,-500.0,0.00012998,2]
[422957086,1779675043000,-1041.7570263,0.00012899,2]
[422957083,1779675043000,-500.0,0.00012898,2]
[422957090,1779675043000,-500.0,0.00012998,2]
[422957105,1779675043000,-501.37160436,0.00012998,2]
[422957139,1779675043000,-500.0,0.00012998,2]
[422957089,1779675043000,-500.0,0.00012998,2]
[422957094,1779675043000,-238.75210664,0.00012998,2]
[422957095,1779675043000,-501.1932845,0.00012998,2]
[422957088,1779675043000,-500.0,0.00012998,2]
[422957096,1779675043000,-501.49725225,0.00012998,2]
[422957099,1779675043000,-500.0,0.00012998,2]
[422957097,1779675043000,-500.0,0.00012998,2]
[422957098,1779675043000,-604.74884252,0.00012998,2]
[422957104,1779675043000,-500.64423411,0.00012998,2]
[422957102,1779675043000,-500.0,0.00012998,2]
[422957103,1779675043000,-501.47840824,0.00012998,2]
[422957100,1779675043000,-500.22345276,0.00012998,2]
[422957093,1779675043000,-500.0,0.00012998,2]
[422957101,1779675043000,-500.0,0.00012998,2]
[422957141,1779675044000,-31.99721761,0.00012998,2]
[422957184,1779675046000,-306.41809606,0.00012999,2]
[422957182,1779675046000,-500.63189818,0.00012999,2]
[422957183,1779675046000,-500.79334631,0.00012999,2]
[422957177,1779675046000,-282.85164277,0.00012896,2]
[422957180,1779675046000,-501.41113536,0.00012998,2]
[422957178,1779675046000,-469.80974086,0.00012998,2]
[422957179,1779675046000,-591.59533674,0.00012998,2]
[422957185,1779675046000,-501.29289767,0.00012999,2]
[422957181,1779675046000,-501.1026796,0.00012999,2]
[422957188,1779675046000,-501.09606877,0.00012999,2]
[422957191,1779675046000,-639.67379256,0.00012999,2]
[422957192,1779675046000,-501.25722473,0.00012999,2]
[422957187,1779675046000,-500.0,0.00012999,2]
[422957197,1779675046000,-598.51575591,0.00012999,2]
[422957196,1779675046000,-500.97269763,0.00012999,2]
[422957194,1779675046000,-500.86164549,0.00012999,2]
[422957198,1779675046000,-500.0,0.00012999,2]
[422957193,1779675046000,-500.53752601,0.00012999,2]
[422957190,1779675046000,-500.0,0.00012999,2]
[422957186,1779675046000,-514.30762288,0.00012999,2]
[422957189,1779675046000,-576.67747159,0.00012999,2]
[422957195,1779675046000,-500.70781419,0.00012999,2]
[422957227,1779675047000,-500.0,0.00013272,2]
[422957221,1779675047000,-500.0,0.00013172,2]
[422957224,1779675047000,-399.36303601,0.00013272,2]
[422957223,1779675047000,-162.86904769,0.00013249,2]
[422957226,1779675047000,-500.0,0.00013272,2]
[422957222,1779675047000,-500.0,0.00013172,2]
[422957229,1779675047000,-245.15321358,0.00013272,2]
[422957232,1779675047000,-346.86347101,0.00013272,2]
[422957228,1779675047000,-500.0,0.00013272,2]
[422957231,1779675047000,-395.40988447,0.00013272,2]
[422957230,1779675047000,-197.44899244,0.00013272,2]
[422957220,1779675047000,-576.74514986,0.00013172,2]
[422957234,1779675047000,-179.50206202,0.00013272,2]
[422957235,1779675047000,-185.41720771,0.00013272,2]
[422957233,1779675047000,-500.0,0.00013272,2]
[422957236,1779675047000,-346.87851916,0.00013272,2]
[422957225,1779675047000,-500.0,0.00013272,2]
[422957219,1779675047000,-444.0521622,0.00013172,2]
[422957214,1779675047000,-625.68964678,0.00013172,2]
[422957213,1779675047000,-256.83846432,0.00013172,2]
[422957238,1779675047000,-500.0,0.00013272,2]
[422957199,1779675047000,-500.90764832,0.00012999,2]
[422957200,1779675047000,-202.16782327,0.00013,2]
[422957201,1779675047000,-500.0,0.0001317,2]
[422957203,1779675047000,-500.0,0.00013171,2]
[422957202,1779675047000,-500.0,0.00013171,2]
[422957204,1779675047000,-500.0,0.00013172,2]
[422957205,1779675047000,-502.11729503,0.00013172,2]
[422957206,1779675047000,-500.0,0.00013172,2]
[422957208,1779675047000,-314.92189095,0.00013172,2]
[422957207,1779675047000,-175.94020805,0.00013172,2]
[422957212,1779675047000,-12.60928256,0.00013172,2]
[422957211,1779675047000,-268.20005146,0.00013172,2]
[422957210,1779675047000,-305.84733962,0.00013172,2]
[422957218,1779675047000,-226.80467376,0.00013172,2]
[422957217,1779675047000,-154.59602101,0.00013172,2]
[422957215,1779675047000,-500.0,0.00013172,2]
[422957216,1779675047000,-500.0,0.00013172,2]
[422957239,1779675047000,-151.0,0.00013272,2]
[422957209,1779675047000,-153.65917522,0.00013172,2]
[422957243,1779675047000,-151.0,0.00013272,2]
[422957260,1779675047000,-500.0,0.00013546,2]
[422957263,1779675047000,-500.0,0.00013546,2]
[422957266,1779675047000,-1000.0,0.00013699,2]
[422957268,1779675047000,-500.0,0.00013719,2]
[422957264,1779675047000,-500.0,0.00013546,2]
[422957269,1779675047000,-542.56086823,0.0001372,2]
[422957277,1779675047000,-328.71674707,0.00013993,2]
[422957271,1779675047000,-570.82132437,0.0001382,2]
[422957265,1779675047000,-713.0911181,0.00013562,2]
[422957267,1779675047000,-500.0,0.00013718,2]
[422957270,1779675047000,-298.18222017,0.0001372,2]
[422957272,1779675047000,-235.94937896,0.0001382,2]
[422957274,1779675047000,-184.535,0.00013894,2]
[422957273,1779675047000,-500.0,0.0001382,2]
[422957237,1779675047000,-500.0,0.00013272,2]
[422957278,1779675047000,-244.40303385,0.00014,2]
[422957276,1779675047000,-500.0,0.00013992,2]
[422957262,1779675047000,-241.15305293,0.00013546,2]
[422957261,1779675047000,-367.72794812,0.00013546,2]
[422957275,1779675047000,-162.02586935,0.000139,6]
[422957258,1779675047000,-333.35362983,0.00013546,2]
[422957244,1779675047000,-151.0,0.00013272,2]
[422957240,1779675047000,-151.0,0.00013272,2]
[422957241,1779675047000,-238.564051,0.00013272,2]
[422957242,1779675047000,-151.0,0.00013272,2]
[422957245,1779675047000,-151.0,0.00013272,2]
[422957247,1779675047000,-610.20738482,0.00013273,2]
[422957246,1779675047000,-363.85925963,0.00013273,2]
[422957249,1779675047000,-500.0,0.00013444,2]
[422957248,1779675047000,-289.35617093,0.00013273,2]
[422957251,1779675047000,-500.0,0.00013445,2]
[422957254,1779675047000,-500.0,0.00013446,2]
[422957253,1779675047000,-202.30786366,0.00013446,2]
[422957250,1779675047000,-287.8736057,0.00013445,2]
[422957255,1779675047000,-642.63977294,0.00013446,2]
[422957257,1779675047000,-500.0,0.00013446,2]
[422957256,1779675047000,-643.33,0.00013446,2]
[422957252,1779675047000,-217.83194545,0.00013446,2]
[422957259,1779675047000,-454.23279698,0.00013546,2]
[422957285,1779675601000,-500.0,0.00011958,2]
[422957284,1779675601000,-500.0,0.00011839,2]
[422957287,1779675602000,-1000.0,0.00011958,2]
[422957286,1779675602000,-1000.0,0.00011958,2]
[422957289,1779675603000,-1000.0,0.00011958,2]
[422957288,1779675603000,-1000.0,0.00011958,2]
[422957290,1779675603000,-500.0,0.00011958,2]
[422957293,1779675603000,-165.0,0.00012201,2]
[422957292,1779675603000,-185.0,0.00012201,2]
[422957291,1779675603000,-150.0,0.0001208,2]
[422957294,1779675604000,-278.0,0.00012201,2]
[422957296,1779675604000,-222.0,0.00012895,2]
[422957297,1779675604000,-228.0,0.00012895,2]
[422957298,1779675604000,-210.01834558,0.00012896,2]
[422957295,1779675604000,-500.0,0.00012895,2]